[Event "EYCC Open-U16 2019"]
[Site "Bratislava"]
[Date "2019.08.09"]
[Round "8.19"]
[White "Marn, Jan"]
[Black "Boyer, Mahel"]
[Result "1/2-1/2"]
[ECO "A61"]
[WhiteElo "2215"]
[BlackElo "2295"]
[Annotator "NA"]
[PlyCount "125"]
[EventDate "2019.08.02"]
[EventType "swiss"]
[EventCountry "SVK"]
[SourceTitle "playchess.com"]
[Source "ChessBase"]
[SourceQuality "1"]
[TimeControl "40/5400+30:1800+30"]

1. d4 {[%emt 0:00:00]} Nf6 {[%emt 0:00:00]} 2. c4 {[%emt 0:00:00]} e6 {[%emt 0:00:00]} 3. Nf3 {[%emt 0:00:00]} c5 {[%emt 0:00:00]} 4. d5 {[%emt 0:00:00]} d6 {[%emt 0:00:00]} 5. Nc3 {[%emt 0:00:06]} exd5 {[%emt 0:00:00]} 6. cxd5 {[%emt 0:00:11]} g6 {[%emt 0:00:00]} 7. Bf4 {[%emt 0:00:11]} a6 {[%emt 0:00:32]} 8. a4 {[%emt 0:00:09]} Bg7 {[%emt 0:00:04]} 9. e4 {[%emt 0:00:10]} O-O {[%emt 0:00:05]} 10. Be2 {[%emt 0:00:07]} Ne8 {[%emt 0:12:02]} 11. O-O {[%emt 0:08:09]} f5 {[%emt 0:05:09]} 12. Qd2 {[%emt 0:13:24]} Nd7 {[%emt 0:27:13]} 13. exf5 {[%emt 0:15:02]} gxf5 {[%emt 0:00:18]} 14. Bc4 {[%emt 0:06:49]} Ne5 {[%emt 0:08:08]} 15. Bxe5 {[%emt 0:00:26]} dxe5 {[%emt 0:00:07]} 16. d6+ {[%emt 0:00:06]} Kh8 {[%emt 0:00:11]} 17. Rad1 {[%emt 0:01:50]} Bd7 {[%emt 0:06:08]} 18. Ng5 {[%emt 0:10:44]} Qf6 {[%emt 0:01:01]} 19. Nd5 {[%emt 0:00:23]} Qg6 {[%emt 0:02:36]} 20. Ne7 {[%emt 0:03:15]} Qf6 {[%emt 0:00:13]} 21. h4 {[%emt 0:07:55]} b5 {[%emt 0:01:43]} 22. axb5 {[%emt 0:07:28]} axb5 {[%emt 0:00:04]} 23. Qd5 {[%emt 0:00:30]} Ra6 {[%emt 0:03:22]} 24. Nf7+ {[%emt 0:16:51]} Rxf7 {[%emt 0:00:31]} 25. Qxf7 {[%emt 0:00:05]} Qxf7 {[%emt 0:00:16]} 26. Bxf7 {[%emt 0:00:06]} Nxd6 {[%emt 0:00:13]} 27. Bb3 {[%emt 0:01:18]} c4 {[%emt 0:02:27]} 28. Ra1 {[%emt 0:01:07]} Rxa1 {[%emt 0:00:51]} 29. Rxa1 {[%emt 0:00:04]} Bf8 {[%emt 0:03:28]} 30. Ra8 {[%emt 0:00:32]} Kg7 {[%emt 0:12:08]} 31. Ra7 {[%emt 0:00:13]} Bxe7 {[%emt 0:00:43]} 32. Rxd7 {[%emt 0:00:05]} Kf6 {[%emt 0:00:02]} 33. Bc2 {[%emt 0:01:10]} Ke6 {[%emt 0:00:03]} 34. Ra7 {[%emt 0:00:12]} Bxh4 {[%emt 0:00:54]} 35. Rxh7 {[%emt 0:00:06]} Bg5 {[%emt 0:00:02]} 36. b3 {[%emt 0:06:03]} c3 {[%emt 0:00:38]} 37. Rh5 {[%emt 0:01:41]} Bd2 {[%emt 0:00:09]} 38. Kf1 {[%emt 0:00:43]} b4 {[%emt 0:00:55]} 39. Ke2 {[%emt 0:01:03]} e4 {[%emt 0:00:08]} 40. f3 {[%emt 0:00:00]} e3 {[%emt 0:00:00]} 41. Rh4 {[%emt 0:22:47]} Nb5 {[%emt 0:06:44]} 42. Kd3 {[%emt 0:02:20]} Na3 {[%emt 0:12:16]} 43. Bd1 {[%emt 0:00:05]} Bc1 {[%emt 0:00:04]} 44. g3 {[%emt 0:07:26]} Kf6 {[%emt 0:03:10]} 45. Rh6+ {[%emt 0:00:22]} Kf7 {[%emt 0:00:27]} 46. Rh1 {[%emt 0:00:36]} Kg7 {[%emt 0:01:47]} 47. Rh2 {[%emt 0:00:53]} Bd2 {[%emt 0:00:31]} 48. Rh4 {[%emt 0:00:11]} Bc1 {[%emt 0:00:13]} 49. Rh5 {[%emt 0:00:28]} Kg6 {[%emt 0:00:13]} 50. Rh8 {[%emt 0:00:04]} f4 {[%emt 0:04:30]} 51. gxf4 {[%emt 0:00:10]} e2 {[%emt 0:00:12]} 52. Kxe2 {[%emt 0:00:29]} c2 {[%emt 0:02:20]} 53. Bxc2+ {[%emt 0:00:04]} Nxc2 {[%emt 0:00:03]} 54. Kd3 {[%emt 0:02:08]} Ne1+ {[%emt 0:01:30]} 55. Ke4 {[%emt 0:00:04]} Bd2 {[%emt 0:00:22]} 56. f5+ {[%emt 0:00:50]} Kg7 {[%emt 0:00:05]} 57. Rh2 {[%emt 0:00:26]} Bc3 {[%emt 0:00:05]} 58. f4 {[%emt 0:00:34]} Kf6 {[%emt 0:00:18]} 59. Ra2 {[%emt 0:00:04]} Kf7 {[%emt 0:00:18]} 60. Ra7+ {[%emt 0:00:59]} Kf6 {[%emt 0:00:01]} 61. Ra6+ {[%emt 0:00:13]} Kf7 {[%emt 0:00:02]} 62. Ra2 {[%emt 0:00:48]} Kf6 {[%emt 0:00:05]} 63. Ra6+ {[%emt 0:00:28] Ke5+} 1/2-1/2

[Event "EYCC Open-U16 2019"]
[Site "Bratislava"]
[Date "2019.08.09"]
[Round "8.20"]
[White "Degraeve, Remy"]
[Black "Kasioumis, Vasilios"]
[Result "0-1"]
[ECO "B48"]
[WhiteElo "2349"]
[BlackElo "2015"]
[Annotator "NA"]
[PlyCount "70"]
[EventDate "2019.08.02"]
[EventType "swiss"]
[EventCountry "SVK"]
[SourceTitle "playchess.com"]
[Source "ChessBase"]
[SourceQuality "1"]
[TimeControl "40/5400+30:1800+30"]

1. e4 {[%emt 0:00:00]} c5 {[%emt 0:00:00]} 2. Nf3 {[%emt 0:00:00]} e6 {[%emt 0:00:00]} 3. d4 {[%emt 0:00:00]} cxd4 {[%emt 0:00:00]} 4. Nxd4 {[%emt 0:00:00]} Nc6 {[%emt 0:00:00]} 5. Nc3 {[%emt 0:00:00]} Qc7 {[%emt 0:00:00]} 6. Be3 {[%emt 0:00:00]} a6 {[%emt 0:00:00]} 7. Qf3 {[%emt 0:00:00]} Nf6 {[%emt 0:00:01]} 8. O-O-O {[%emt 0:00:00]} h5 {[%emt 0:00:05]} 9. Nxc6 {[%emt 0:05:39]} dxc6 {[%emt 0:00:06]} 10. Bg5 {[%emt 0:06:11]} e5 {[%emt 0:04:26]} 11. Qg3 {[%emt 0:02:56]} Be6 {[%emt 0:11:47]} 12. h3 {[%emt 0:02:44]} b5 {[%emt 0:07:42]} 13. Kb1 {[%emt 0:04:16]} Nd7 {[%emt 0:04:23]} 14. Be2 {[%emt 0:03:33]} f6 {[%emt 0:05:44]} 15. Bc1 {[%emt 0:00:41]} Qa5 {[%emt 0:13:19]} 16. b3 {[%emt 0:03:09]} Bb4 {[%emt 0:01:54]} 17. Qg6+ {[%emt 0:05:59]} Bf7 {[%emt 0:03:36]} 18. Qxg7 {[%emt 0:00:08]} Rg8 {[%emt 0:00:10]} 19. Qh7 {[%emt 0:00:04]} Nf8 {[%emt 0:02:42]} 20. Qf5 {[%emt 0:01:30]} Ke7 {[%emt 0:05:13]} 21. Be3 {[%emt 0:14:44]} Bg6 {[%emt 0:01:37]} 22. Qf3 {[%emt 0:00:02]} Ne6 {[%emt 0:05:47]} 23. Nd5+ {[%emt 0:11:18]} cxd5 {[%emt 0:00:30]} 24. exd5 {[%emt 0:00:04]} Rac8 {[%emt 0:08:40]} 25. Bd3 {[%emt 0:00:04]} Rxc2 {[%emt 0:02:44]} 26. Bxc2 {[%emt 0:00:06]} Bxc2+ {[%emt 0:00:08]} 27. Kxc2 {[%emt 0:00:04]} Qxa2+ {[%emt 0:00:04]} 28. Kd3 {[%emt 0:00:10]} Qxb3+ {[%emt 0:00:15]} 29. Ke2 {[%emt 0:00:19]} Qc4+ {[%emt 0:00:06]} 30. Rd3 {[%emt 0:00:26]} e4 {[%emt 0:00:14]} 31. Qxe4 {[%emt 0:03:17]} Qxe4 {[%emt 0:00:06]} 32. dxe6 {[%emt 0:00:02]} Rd8 {[%emt 0:03:10]} 33. Rhd1 {[%emt 0:00:03]} Rxd3 {[%emt 0:00:12]} 34. Rxd3 {[%emt 0:00:01]} Qxe6 {[%emt 0:00:27]} 35. f4 {[%emt 0:00:12]} Qe4 {[%emt 0:01:02]} 0-1

[Event "EYCC Open-U16 2019"]
[Site "Bratislava"]
[Date "2019.08.09"]
[Round "8.21"]
[White "Suvorov, Alexander"]
[Black "Torngren, Gustav"]
[Result "1/2-1/2"]
[ECO "A40"]
[WhiteElo "2333"]
[BlackElo "2109"]
[Annotator "NA"]
[PlyCount "91"]
[EventDate "2019.08.02"]
[EventType "swiss"]
[EventCountry "SVK"]
[SourceTitle "playchess.com"]
[Source "ChessBase"]
[SourceQuality "1"]
[TimeControl "40/5400+30:1800+30"]

1. d4 {[%emt 0:00:00]} e6 {[%emt 0:00:00]} 2. Bf4 {[%emt 0:00:00]} c5 {[%emt 0:01:34]} 3. e3 {[%emt 0:00:27]} Nc6 {[%emt 0:05:49]} 4. c3 {[%emt 0:01:23]} d5 {[%emt 0:03:38]} 5. Nd2 {[%emt 0:01:38]} cxd4 {[%emt 0:00:35]} 6. exd4 {[%emt 0:00:46]} Bd6 {[%emt 0:00:11]} 7. Bxd6 {[%emt 0:04:21]} Qxd6 {[%emt 0:00:12]} 8. Qg4 {[%emt 0:01:00]} Kf8 {[%emt 0:05:45]} 9. Ngf3 {[%emt 0:04:25]} Nh6 {[%emt 0:08:17]} 10. Qh5 {[%emt 0:05:55]} Bd7 {[%emt 0:03:40]} 11. Bd3 {[%emt 0:08:20]} f6 {[%emt 0:03:14]} 12. O-O {[%emt 0:06:15]} Be8 {[%emt 0:00:38]} 13. Qh3 {[%emt 0:03:24]} Bg6 {[%emt 0:01:09]} 14. Nh4 {[%emt 0:04:46]} Bxd3 {[%emt 0:01:31]} 15. Qxd3 {[%emt 0:00:02]} g5 {[%emt 0:00:13]} 16. Nhf3 {[%emt 0:00:45]} Re8 {[%emt 0:11:51]} 17. Nb3 {[%emt 0:22:16]} Re7 {[%emt 0:02:55]} 18. Rfe1 {[%emt 0:02:07]} Kg7 {[%emt 0:08:54]} 19. Re2 {[%emt 0:06:11]} Nf7 {[%emt 0:01:26]} 20. Rd1 {[%emt 0:03:26]} Rhe8 {[%emt 0:05:54]} 21. Nfd2 {[%emt 0:03:41]} Nh8 {[%emt 0:01:26]} 22. Rde1 {[%emt 0:03:09]} Ng6 {[%emt 0:00:31]} 23. g3 {[%emt 0:00:11]} h5 {[%emt 0:05:59]} 24. Nf1 {[%emt 0:00:08]} Nd8 {[%emt 0:01:33]} 25. Ne3 {[%emt 0:01:06]} Nf7 {[%emt 0:01:04]} 26. c4 {[%emt 0:00:52]} dxc4 {[%emt 0:00:25]} 27. Nxc4 {[%emt 0:00:42]} Qd5 {[%emt 0:00:27]} 28. Ne3 {[%emt 0:00:40]} Qf3 {[%emt 0:00:19]} 29. Rc2 {[%emt 0:00:37]} b6 {[%emt 0:03:20]} 30. Nd2 {[%emt 0:01:17]} Qa8 {[%emt 0:00:36]} 31. d5 {[%emt 0:06:40]} Nge5 {[%emt 0:01:33]} 32. Qe2 {[%emt 0:00:41]} g4 {[%emt 0:06:11]} 33. f4 {[%emt 0:00:03]} gxf3 {[%emt 0:00:08]} 34. Nxf3 {[%emt 0:00:05]} Ng4 {[%emt 0:00:11]} 35. Nxg4 {[%emt 0:05:02]} hxg4 {[%emt 0:00:42]} 36. Nd4 {[%emt 0:00:42]} Ne5 {[%emt 0:01:28]} 37. dxe6 {[%emt 0:00:50]} Rxe6 {[%emt 0:05:26]} 38. Rc7+ {[%emt 0:02:45]} Kf8 {[%emt 0:00:02]} 39. Nxe6+ {[%emt 0:01:55]} Rxe6 {[%emt 0:00:02]} 40. Qc2 Qd5 {[%emt 0:00:00]} 41. Rc8+ {[%emt 0:08:57]} Kg7 {[%emt 0:16:37]} 42. Qc7+ {[%emt 0:03:21]} Nf7 {[%emt 0:00:34]} 43. Rxe6 {[%emt 0:01:36]} Qxe6 {[%emt 0:00:05]} 44. Qc3 {[%emt 0:08:15]} Ng5 {[%emt 0:06:45]} 45. Rc4 {[%emt 0:04:16]} b5 {[%emt 0:06:51]} 46. Rc7+ {[%emt 0:02:22]} 1/2-1/2

[Event "EYCC Open-U16 2019"]
[Site "Bratislava"]
[Date "2019.08.09"]
[Round "8.22"]
[White "Gavrilin, Roman"]
[Black "Fecker, Noah"]
[Result "1/2-1/2"]
[ECO "B48"]
[WhiteElo "2131"]
[BlackElo "2313"]
[Annotator "NA"]
[PlyCount "49"]
[EventDate "2019.08.02"]
[EventType "swiss"]
[EventCountry "SVK"]
[SourceTitle "playchess.com"]
[Source "ChessBase"]
[SourceQuality "1"]
[TimeControl "40/5400+30:1800+30"]

1. e4 {[%emt 0:00:00]} c5 {[%emt 0:00:00]} 2. Nf3 {[%emt 0:00:00]} e6 {[%emt 0:00:00]} 3. d4 {[%emt 0:00:00]} cxd4 {[%emt 0:00:00]} 4. Nxd4 {[%emt 0:00:00]} Nc6 {[%emt 0:00:00]} 5. Nc3 {[%emt 0:00:05]} Qc7 {[%emt 0:00:00]} 6. Be3 {[%emt 0:00:09]} a6 {[%emt 0:00:00]} 7. Qd2 {[%emt 0:00:47]} Nf6 {[%emt 0:00:46]} 8. f4 {[%emt 0:00:23]} Bb4 {[%emt 0:05:30]} 9. Bd3 {[%emt 0:00:05]} Na5 {[%emt 0:03:27]} 10. a3 {[%emt 0:00:06]} Bxc3 {[%emt 0:00:20]} 11. Qxc3 {[%emt 0:00:08]} Qxc3+ {[%emt 0:00:09]} 12. bxc3 {[%emt 0:00:04]} d5 {[%emt 0:12:31]} 13. exd5 {[%emt 0:00:04]} Nxd5 {[%emt 0:07:34]} 14. Bd2 {[%emt 0:00:05]} Nb6 {[%emt 0:10:08]} 15. Rb1 {[%emt 0:00:04]} Nbc4 {[%emt 0:03:01]} 16. Bc1 {[%emt 0:00:05]} Bd7 {[%emt 0:08:44]} 17. Bxc4 {[%emt 0:01:30]} Nxc4 {[%emt 0:02:24]} 18. Rxb7 {[%emt 0:00:56]} Nd6 {[%emt 0:04:24]} 19. Rb6 {[%emt 0:03:07]} Ke7 {[%emt 0:06:34]} 20. O-O {[%emt 0:12:16]} Rhb8 {[%emt 0:04:35]} 21. Rxb8 {[%emt 0:00:31]} Rxb8 {[%emt 0:00:05]} 22. Re1 {[%emt 0:00:53]} Rc8 {[%emt 0:04:44]} 23. f5 {[%emt 0:25:04]} Rxc3 {[%emt 0:06:06]} 24. Bg5+ f6 25. Bd2 1/2-1/2

[Event "EYCC Open-U16 2019"]
[Site "Bratislava"]
[Date "2019.08.09"]
[Round "8.23"]
[White "Kazmin, Semen"]
[Black "Mukhutdinov, Tigran"]
[Result "1/2-1/2"]
[ECO "B32"]
[WhiteElo "2193"]
[BlackElo "2328"]
[Annotator "NA"]
[PlyCount "109"]
[EventDate "2019.08.02"]
[EventType "swiss"]
[EventCountry "SVK"]
[SourceTitle "playchess.com"]
[Source "ChessBase"]
[SourceQuality "1"]
[TimeControl "40/5400+30:1800+30"]

1. e4 {[%emt 0:00:00]} c5 {[%emt 0:00:00]} 2. Nf3 {[%emt 0:00:00]} Nc6 {[%emt 0:00:00]} 3. d4 {[%emt 0:00:00]} cxd4 {[%emt 0:00:00]} 4. Nxd4 {[%emt 0:00:00]} e5 {[%emt 0:00:00]} 5. Nb5 {[%emt 0:00:00]} d6 {[%emt 0:00:00]} 6. c4 {[%emt 0:00:04]} Be7 {[%emt 0:00:16]} 7. N1c3 {[%emt 0:00:10]} a6 {[%emt 0:00:04]} 8. Na3 {[%emt 0:00:05]} f5 {[%emt 0:00:08]} 9. Nd5 {[%emt 0:09:44]} Nf6 {[%emt 0:07:42]} 10. Be3 {[%emt 0:01:50]} Nxd5 {[%emt 0:05:29]} 11. exd5 {[%emt 0:00:35]} Nb8 {[%emt 0:02:13]} 12. f3 {[%emt 0:00:36]} O-O {[%emt 0:00:40]} 13. Be2 {[%emt 0:00:47]} Bh4+ {[%emt 0:00:33]} 14. g3 {[%emt 0:01:10]} Bg5 {[%emt 0:00:49]} 15. Bxg5 {[%emt 0:01:54]} Qxg5 {[%emt 0:00:04]} 16. Qd2 {[%emt 0:01:07]} f4 {[%emt 0:01:37]} 17. O-O-O {[%emt 0:04:34]} b5 {[%emt 0:09:54]} 18. Rhg1 {[%emt 0:02:43]} Qh6 {[%emt 0:04:24]} 19. h4 {[%emt 0:02:36]} bxc4 {[%emt 0:10:02]} 20. Nxc4 {[%emt 0:01:08]} Bd7 {[%emt 0:03:05]} 21. Kb1 {[%emt 0:06:41]} Bb5 {[%emt 0:03:12]} 22. g4 {[%emt 0:02:38]} Bxc4 {[%emt 0:04:35]} 23. Bxc4 {[%emt 0:00:38]} e4 {[%emt 0:03:22]} 24. Qb4 {[%emt 0:09:27]} Nd7 {[%emt 0:02:17]} 25. g5 {[%emt 0:02:06]} Qg6 {[%emt 0:00:19]} 26. h5 {[%emt 0:00:27]} Qf5 {[%emt 0:01:59]} 27. Bb3 {[%emt 0:18:46]} Qe5 {[%emt 0:12:52]} 28. Qxe4 {[%emt 0:04:27]} Qxe4+ {[%emt 0:00:05]} 29. fxe4 {[%emt 0:00:04]} Ne5 {[%emt 0:00:18]} 30. Rc1 {[%emt 0:04:55]} f3 {[%emt 0:01:11]} 31. g6 {[%emt 0:06:28]} hxg6 {[%emt 0:00:43]} 32. hxg6 {[%emt 0:01:16]} Rf6 {[%emt 0:01:16]} 33. Rg5 {[%emt 0:02:04]} Nxg6 {[%emt 0:01:55]} 34. Rcg1 {[%emt 0:01:19]} f2 {[%emt 0:01:29]} 35. Rf1 {[%emt 0:00:06]} Raf8 {[%emt 0:01:26]} 36. Kc2 {[%emt 0:01:23]} Ne5 {[%emt 0:05:06]} 37. Rg2 {[%emt 0:02:52]} Rf4 {[%emt 0:01:48]} 38. Kd2 {[%emt 0:00:41]} a5 {[%emt 0:02:18]} 39. Bc2 {[%emt 0:01:01]} Nf3+ 40. Kd1 {[%emt 0:00:00]} Nh4 {[%emt 0:00:00]} 41. Rg3 {[%emt 0:04:18]} R8f6 {[%emt 0:13:00]} 42. b3 {[%emt 0:05:11]} g6 {[%emt 0:02:33]} 43. a3 {[%emt 0:01:16]} Kg7 {[%emt 0:06:27]} 44. b4 {[%emt 0:00:28]} Rf3 {[%emt 0:01:26]} 45. Rxf3 {[%emt 0:01:10]} Rxf3 {[%emt 0:00:04]} 46. b5 {[%emt 0:04:05]} Rf8 {[%emt 0:01:25]} 47. Ke2 {[%emt 0:05:54]} Nf3 48. b6 {[%emt 0:04:37]} Nd4+ {[%emt 0:03:00]} 49. Kd3 {[%emt 0:00:30]} Nxc2 {[%emt 0:00:06]} 50. Kxc2 {[%emt 0:00:01]} Rb8 {[%emt 0:00:13]} 51. Rxf2 {[%emt 0:00:13]} Rxb6 {[%emt 0:00:03]} 52. Rf3 {[%emt 0:01:57]} g5 {[%emt 0:00:28]} 53. Rf5 {[%emt 0:04:09]} Kg6 {[%emt 0:00:07]} 54. Rf8 {[%emt 0:00:06]} a4 {[%emt 0:03:18]} 55. Kc3 {[%emt 0:03:26]} 1/2-1/2

[Event "EYCC Open-U16 2019"]
[Site "Bratislava"]
[Date "2019.08.09"]
[Round "8.24"]
[White "Stremavicius, Pijus"]
[Black "Sjoberg, Isak"]
[Result "1/2-1/2"]
[ECO "E70"]
[WhiteElo "2071"]
[BlackElo "2182"]
[Annotator "NA"]
[PlyCount "59"]
[EventDate "2019.08.02"]
[EventType "swiss"]
[EventCountry "SVK"]
[SourceTitle "playchess.com"]
[Source "ChessBase"]
[SourceQuality "1"]
[TimeControl "40/5400+30:1800+30"]

1. d4 {[%emt 0:00:00]} Nf6 {[%emt 0:00:00]} 2. c4 {[%emt 0:00:00]} g6 {[%emt 0:00:30]} 3. Nc3 {[%emt 0:00:00]} Bg7 {[%emt 0:00:49]} 4. e4 {[%emt 0:00:03]} d6 {[%emt 0:00:07]} 5. Bd3 {[%emt 0:00:04]} O-O {[%emt 0:01:59]} 6. Nge2 {[%emt 0:00:33]} c5 {[%emt 0:01:07]} 7. d5 {[%emt 0:01:42]} e6 {[%emt 0:00:07]} 8. O-O {[%emt 0:00:20]} exd5 {[%emt 0:00:08]} 9. exd5 {[%emt 0:00:05]} Ng4 {[%emt 0:02:57]} 10. f4 {[%emt 0:11:52]} Re8 {[%emt 0:12:02]} 11. Rf3 {[%emt 0:02:19]} Qh4 {[%emt 0:05:25]} 12. h3 {[%emt 0:05:18]} Bd4+ 13. Nxd4 {[%emt 0:01:52]} Re1+ {[%emt 0:08:42]} 14. Qxe1 {[%emt 0:00:34]} Qxe1+ {[%emt 0:00:06]} 15. Rf1 {[%emt 0:00:03]} Qe7 {[%emt 0:00:22]} 16. Nf3 {[%emt 0:02:51]} Nh6 {[%emt 0:06:22]} 17. g4 {[%emt 0:01:42]} f6 {[%emt 0:11:56]} 18. Re1 {[%emt 0:02:22]} Qf8 {[%emt 0:02:03]} 19. b3 {[%emt 0:00:20]} Na6 {[%emt 0:04:49]} 20. Bb2 {[%emt 0:01:04]} Nb4 {[%emt 0:03:53]} 21. Bb1 {[%emt 0:00:58]} Nxg4 {[%emt 0:02:15]} 22. hxg4 {[%emt 0:00:44]} Bxg4 {[%emt 0:00:15]} 23. Nh2 {[%emt 0:00:56]} Bf5 {[%emt 0:04:49]} 24. Bxf5 {[%emt 0:08:13]} gxf5 {[%emt 0:00:08]} 25. Re3 {[%emt 0:05:55]} Kh8 {[%emt 0:04:00]} 26. Rg3 {[%emt 0:03:05]} Qh6 {[%emt 0:02:19]} 27. Rf1 {[%emt 0:00:56]} Rg8 {[%emt 0:02:23]} 28. Rxg8+ {[%emt 0:00:47]} Kxg8 {[%emt 0:00:02]} 29. Rf3 {[%emt 0:00:16]} a6 {[%emt 0:02:26]} 30. Nf1 {[%emt 0:03:22]} 1/2-1/2

[Event "EYCC Open-U16 2019"]
[Site "Bratislava"]
[Date "2019.08.09"]
[Round "8.25"]
[White "Bukatin, Arseny"]
[Black "Ivanovic, Marko"]
[Result "0-1"]
[ECO "B07"]
[WhiteElo "2016"]
[BlackElo "2267"]
[Annotator "NA"]
[PlyCount "76"]
[EventDate "2019.08.02"]
[EventType "swiss"]
[EventCountry "SVK"]
[SourceTitle "playchess.com"]
[Source "ChessBase"]
[SourceQuality "1"]
[TimeControl "40/5400+30:1800+30"]

1. e4 {[%emt 0:00:00]} d6 {[%emt 0:02:03]} 2. d4 {[%emt 0:00:00]} Nf6 {[%emt 0:00:02]} 3. Nc3 {[%emt 0:00:00]} Nbd7 {[%emt 0:00:03]} 4. f4 {[%emt 0:00:00]} e5 {[%emt 0:00:05]} 5. Nf3 {[%emt 0:17:42]} exd4 {[%emt 0:00:05]} 6. Nxd4 {[%emt 0:00:16]} Nc5 {[%emt 0:00:19]} 7. Bd3 {[%emt 0:02:02]} g6 {[%emt 0:01:41]} 8. O-O {[%emt 0:00:16]} Bg7 {[%emt 0:00:04]} 9. h3 {[%emt 0:12:37]} O-O {[%emt 0:00:08]} 10. Nb3 {[%emt 0:00:32]} Nxd3 {[%emt 0:01:22]} 11. cxd3 {[%emt 0:01:08]} Re8 {[%emt 0:03:29]} 12. Qf3 {[%emt 0:05:09]} c6 {[%emt 0:07:53]} 13. Be3 {[%emt 0:02:20]} b5 {[%emt 0:02:14]} 14. Nxb5 {[%emt 0:32:22]} cxb5 {[%emt 0:23:56]} 15. e5 {[%emt 0:00:06]} Bb7 {[%emt 0:27:53]} 16. Qxb7 {[%emt 0:00:11]} dxe5 {[%emt 0:00:03]} 17. fxe5 {[%emt 0:00:08]} Qd5 {[%emt 0:13:55]} 18. Qc7 {[%emt 0:01:16]} Rxe5 {[%emt 0:04:21]} 19. Bd4 {[%emt 0:09:29]} Rg5 {[%emt 0:01:39]} 20. Qc2 {[%emt 0:00:58]} Ng4 {[%emt 0:00:29]} 21. Bxa7 {[%emt 0:06:10]} Rxa7 {[%emt 0:02:28]} 22. hxg4 {[%emt 0:00:19]} Be5 {[%emt 0:01:34]} 23. Qf2 {[%emt 0:02:12]} Ra4 {[%emt 0:01:45]} 24. Qf3 {[%emt 0:01:06]} Qd7 {[%emt 0:00:03]} 25. d4 {[%emt 0:01:27]} Rxd4 {[%emt 0:02:11]} 26. Nxd4 {[%emt 0:02:13]} Bxd4+ {[%emt 0:00:06]} 27. Kh1 {[%emt 0:00:10]} Rxg4 {[%emt 0:00:06]} 28. g3 {[%emt 0:00:04]} Rg5 {[%emt 0:01:30]} 29. Kg2 {[%emt 0:00:30]} Be5 {[%emt 0:00:37]} 30. Rad1 {[%emt 0:00:22]} Qc7 {[%emt 0:00:24]} 31. Rc1 {[%emt 0:01:32]} Qa7 {[%emt 0:00:38]} 32. g4 {[%emt 0:01:24]} h5 {[%emt 0:00:16]} 33. Rc8+ {[%emt 0:01:15]} Kg7 {[%emt 0:00:06]} 34. Re8 {[%emt 0:00:45]} Qc7 {[%emt 0:02:27]} 35. Kh1 {[%emt 0:00:33]} hxg4 {[%emt 0:00:19]} 36. Qe4 {[%emt 0:00:41]} Rh5+ {[%emt 0:00:12]} 37. Kg1 {[%emt 0:00:08]} Qc5+ {[%emt 0:00:11]} 38. Rf2 {[%emt 0:00:12]} g3 {[%emt 0:00:12]} 0-1

[Event "EYCC Open-U16 2019"]
[Site "Bratislava"]
[Date "2019.08.09"]
[Round "8.26"]
[White "Fernandez Garcia, Gumersindo"]
[Black "Risteski, Emil"]
[Result "1/2-1/2"]
[ECO "E70"]
[WhiteElo "2011"]
[BlackElo "2150"]
[Annotator "NA"]
[PlyCount "28"]
[EventDate "2019.08.02"]
[EventType "swiss"]
[EventCountry "SVK"]
[SourceTitle "playchess.com"]
[Source "ChessBase"]
[SourceQuality "1"]
[TimeControl "40/5400+30:1800+30"]

1. d4 {[%emt 0:00:00]} Nf6 {[%emt 0:00:00]} 2. c4 {[%emt 0:00:00]} g6 {[%emt 0:00:00]} 3. Nc3 {[%emt 0:00:00]} Bg7 {[%emt 0:00:00]} 4. e4 {[%emt 0:00:00]} d6 {[%emt 0:00:00]} 5. Bg5 {[%emt 0:00:03]} O-O {[%emt 0:00:00]} 6. Qd2 {[%emt 0:00:04]} c5 {[%emt 0:00:11]} 7. d5 {[%emt 0:00:13]} e6 {[%emt 0:00:18]} 8. Nf3 {[%emt 0:00:19]} exd5 {[%emt 0:00:09]} 9. exd5 {[%emt 0:00:10]} Re8+ {[%emt 0:03:46]} 10. Be2 {[%emt 0:02:06]} Bf5 {[%emt 0:08:08]} 11. O-O {[%emt 0:06:16]} Qb6 {[%emt 0:04:56]} 12. Nh4 {[%emt 0:13:12]} Bd7 {[%emt 0:00:24]} 13. Bd3 {[%emt 0:00:56]} Na6 {[%emt 0:01:33]} 14. h3 {[%emt 0:05:25]} Qc7 {[%emt 0:11:49]} 1/2-1/2

[Event "EYCC Open-U16 2019"]
[Site "Bratislava"]
[Date "2019.08.09"]
[Round "8.27"]
[White "Koziorowicz, Michal"]
[Black "Palczert, Botond"]
[Result "1-0"]
[ECO "B90"]
[WhiteElo "1985"]
[BlackElo "2022"]
[Annotator "NA"]
[PlyCount "99"]
[EventDate "2019.08.02"]
[EventType "swiss"]
[EventCountry "SVK"]
[SourceTitle "playchess.com"]
[Source "ChessBase"]
[SourceQuality "1"]
[TimeControl "40/5400+30:1800+30"]

1. e4 {[%emt 0:00:00]} c5 {[%emt 0:00:00]} 2. Nf3 {[%emt 0:00:00]} d6 {[%emt 0:00:00]} 3. d4 {[%emt 0:00:00]} cxd4 {[%emt 0:00:12]} 4. Nxd4 {[%emt 0:00:00]} Nf6 {[%emt 0:00:14]} 5. Nc3 {[%emt 0:00:00]} a6 {[%emt 0:00:16]} 6. Be3 {[%emt 0:02:25]} e5 {[%emt 0:00:19]} 7. Nb3 {[%emt 0:00:06]} Be6 {[%emt 0:00:27]} 8. f3 {[%emt 0:00:11]} h5 {[%emt 0:00:37]} 9. Qd2 {[%emt 0:02:19]} Nbd7 {[%emt 0:00:33]} 10. O-O-O {[%emt 0:01:48]} Be7 {[%emt 0:01:10]} 11. h3 {[%emt 0:01:46]} Rc8 {[%emt 0:01:12]} 12. Rg1 {[%emt 0:01:35]} h4 {[%emt 0:10:47]} 13. Kb1 {[%emt 0:06:46]} b5 {[%emt 0:01:08]} 14. g4 {[%emt 0:18:27]} Nb6 {[%emt 0:09:24]} 15. g5 {[%emt 0:12:42]} Nfd7 {[%emt 0:02:22]} 16. g6 {[%emt 0:05:22]} f6 {[%emt 0:03:03]} 17. f4 {[%emt 0:12:40]} exf4 {[%emt 0:12:23]} 18. Bxf4 {[%emt 0:00:11]} Ne5 {[%emt 0:00:47]} 19. Nd4 {[%emt 0:00:41]} Bd7 {[%emt 0:03:49]} 20. Nf5 {[%emt 0:12:50]} Bxf5 {[%emt 0:01:54]} 21. exf5 {[%emt 0:00:01]} Qc7 {[%emt 0:18:19]} 22. Rg2 {[%emt 0:04:53]} Qc6 {[%emt 0:02:59]} 23. Rf2 {[%emt 0:01:33]} b4 {[%emt 0:02:59]} 24. Bg2 {[%emt 0:02:42]} Qc7 {[%emt 0:01:39]} 25. Nd5 {[%emt 0:01:29]} Nxd5 {[%emt 0:02:53]} 26. Bxe5 {[%emt 0:03:04]} Nc3+ {[%emt 0:11:18]} 27. Bxc3 {[%emt 0:00:09]} bxc3 {[%emt 0:00:03]} 28. Qd5 {[%emt 0:00:32]} Qb6 {[%emt 0:01:45]} 29. Qb7 {[%emt 0:02:47]} Qxb2+ {[%emt 0:03:02]} 30. Qxb2 {[%emt 0:00:02]} cxb2 {[%emt 0:00:07]} 31. Kxb2 {[%emt 0:01:45]} Kd7 {[%emt 0:01:04]} 32. Bd5 {[%emt 0:00:36]} Rb8+ {[%emt 0:00:35]} 33. Kc1 {[%emt 0:00:59]} Rb4 {[%emt 0:00:23]} 34. c3 {[%emt 0:00:33]} Rb6 {[%emt 0:00:58]} 35. Rb2 {[%emt 0:00:22]} Rxb2 {[%emt 0:02:42]} 36. Kxb2 {[%emt 0:00:01]} Bd8 {[%emt 0:00:31]} 37. Rd4 {[%emt 0:00:59]} Bb6 {[%emt 0:00:47]} 38. Rc4 {[%emt 0:00:21]} a5 {[%emt 0:01:55]} 39. Be6+ {[%emt 0:00:09]} Ke7 {[%emt 0:00:23]} 40. Rc6 {[%emt 0:00:00]} Rb8 {[%emt 0:00:00]} 41. Kc2 {[%emt 0:04:52]} Rb7 {[%emt 0:07:38]} 42. Rc4 {[%emt 0:01:05]} Bf2 {[%emt 0:01:04]} 43. Rc8 {[%emt 0:01:17]} Be3 {[%emt 0:00:27]} 44. a4 {[%emt 0:06:05]} Ra7 {[%emt 0:17:36]} 45. Kd3 {[%emt 0:04:40]} Bh6 {[%emt 0:01:22]} 46. Kc4 {[%emt 0:04:54]} Ra6 {[%emt 0:00:36]} 47. Kb5 {[%emt 0:00:59]} Ra7 {[%emt 0:00:08]} 48. Bd5 {[%emt 0:00:12]} Kd7 {[%emt 0:03:15]} 49. Rf8 {[%emt 0:00:10]} Rc7 {[%emt 0:00:28]} 50. Bc6+ {[%emt 0:00:14]} 1-0